[Event "Eurasia Open Cup 2019"]
[Site "Ekaterinburg"]
[Date "2019.08.06"]
[Round "6.15"]
[White "Afanasiev, Nikita"]
[Black "Chekletsov, Ilya"]
[Result "1-0"]
[ECO "B53"]
[WhiteElo "2514"]
[BlackElo "2374"]
[Annotator "ChessBase"]
[PlyCount "129"]
[EventDate "2019.07.31"]
[EventType "swiss"]
[EventCountry "RUS"]
[SourceTitle "playchess.com"]
[Source "ChessBase"]
[SourceQuality "1"]
[TimeControl "5400+30"]

1. e4 {[%emt 0:00:04]} c5 {[%emt 0:00:00]} 2. Nf3 {[%emt 0:00:04]} d6 {[%emt 0:00:00]} 3. d4 {[%emt 0:00:00]} cxd4 {[%emt 0:00:00]} 4. Qxd4 {[%emt 0:00:00]} Nc6 {[%emt 0:00:00]} 5. Bb5 {[%emt 0:00:00]} Bd7 {[%emt 0:00:00]} 6. Qd3 {[%emt 0:00:04]} Nf6 {[%emt 0:02:42]} 7. c4 {[%emt 0:02:07]} e6 {[%emt 0:00:07]} 8. Nc3 {[%emt 0:02:46]} Be7 {[%emt 0:00:07]} 9. O-O {[%emt 0:06:14]} O-O {[%emt 0:00:52]} 10. Rd1 {[%emt 0:17:01]} a6 {[%emt 0:08:44]} 11. Ba4 {[%emt 0:06:57]} Qa5 {[%emt 0:04:49]} 12. Qe2 {[%emt 0:12:43]} Ne5 {[%emt 0:04:37]} 13. Bc2 {[%emt 0:03:25]} Nxf3+ {[%emt 0:01:23]} 14. Qxf3 {[%emt 0:00:05]} Rac8 {[%emt 0:00:36]} 15. b3 {[%emt 0:01:39]} b5 {[%emt 0:06:54]} 16. Bd2 {[%emt 0:08:41]} Qb6 {[%emt 0:01:46]} 17. Bd3 {[%emt 0:06:18]} b4 {[%emt 0:08:25]} 18. Ne2 {[%emt 0:00:23]} a5 {[%emt 0:01:24]} 19. Ng3 {[%emt 0:06:47]} Rfd8 {[%emt 0:03:29]} 20. a3 {[%emt 0:01:45]} Qb7 {[%emt 0:02:53]} 21. axb4 {[%emt 0:07:31]} axb4 {[%emt 0:00:36]} 22. Qe3 {[%emt 0:00:43]} Ra8 {[%emt 0:00:24]} 23. Qe1 {[%emt 0:00:00]} Rxa1 {[%emt 0:04:55]} 24. Rxa1 {[%emt 0:00:00]} Rb8 {[%emt 0:00:05]} 25. Qe3 {[%emt 0:05:09]} Bd8 {[%emt 0:02:03]} 26. Qa7 {[%emt 0:00:31]} Qxa7 {[%emt 0:00:28]} 27. Rxa7 {[%emt 0:00:09]} Bb6 {[%emt 0:01:07]} 28. Ra6 {[%emt 0:00:06]} Ng4 {[%emt 0:01:57]} 29. Be2 {[%emt 0:00:44]} Nf6 {[%emt 0:19:21]} 30. Bxb4 {[%emt 0:00:00]} Bd4 {[%emt 0:00:03]} 31. Bxd6 {[%emt 0:00:50]} Rxb3 {[%emt 0:00:04]} 32. e5 {[%emt 0:06:21]} Ne8 {[%emt 0:00:11]} 33. Ne4 {[%emt 0:01:27]} Rb1+ {[%emt 0:00:37]} 34. Bf1 {[%emt 0:00:00]} f6 {[%emt 0:00:15]} 35. exf6 {[%emt 0:00:16]} gxf6 {[%emt 0:00:31]} 36. Bc5 {[%emt 0:00:20]} Be5 {[%emt 0:03:19]} 37. Nd2 {[%emt 0:00:44]} Rd1 {[%emt 0:02:39]} 38. Nf3 {[%emt 0:01:00]} Bd6 {[%emt 0:01:29]} 39. Be3 {[%emt 0:00:59]} e5 {[%emt 0:00:35]} 40. Ra2 {[%emt 0:00:37]} Be6 {[%emt 0:01:24]} 41. Rc2 {[%emt 0:00:44]} Bb4 {[%emt 0:00:00]} 42. h3 {[%emt 0:01:55]} Nd6 {[%emt 0:00:26]} 43. c5 {[%emt 0:01:08]} Bc4 {[%emt 0:00:34]} 44. Nh2 {[%emt 0:00:44]} Bxf1 {[%emt 0:04:49]} 45. Nxf1 {[%emt 0:00:02]} Nf5 {[%emt 0:00:06]} 46. c6 {[%emt 0:00:51]} Rd8 {[%emt 0:00:03]} 47. Bb6 {[%emt 0:01:09]} Rc8 {[%emt 0:00:04]} 48. Ne3 {[%emt 0:00:00]} Nd4 {[%emt 0:00:33]} 49. Rc4 {[%emt 0:00:49]} Nxc6 {[%emt 0:00:25]} 50. Nd5 {[%emt 0:00:05]} Bf8 {[%emt 0:00:24]} 51. Nxf6+ {[%emt 0:00:00]} Kg7 {[%emt 0:00:13]} 52. Nd7 {[%emt 0:00:00]} Bd6 {[%emt 0:00:14]} 53. Be3 {[%emt 0:01:38]} Ne7 {[%emt 0:01:38]} 54. Rg4+ {[%emt 0:00:42]} Kf7 {[%emt 0:00:39]} 55. Nb6 {[%emt 0:00:00]} Rc6 {[%emt 0:00:17]} 56. Nc4 {[%emt 0:00:23]} Bc7 {[%emt 0:00:00]} 57. Re4 {[%emt 0:01:04]} Ng6 {[%emt 0:00:06]} 58. g3 {[%emt 0:00:17]} h5 {[%emt 0:00:32]} 59. Kg2 {[%emt 0:00:00]} Ke6 {[%emt 0:00:43]} 60. Nd2 {[%emt 0:00:00]} Ba5 {[%emt 0:00:31]} 61. Nf3 {[%emt 0:00:03]} Bc3 {[%emt 0:00:03]} 62. Ra4 {[%emt 0:00:12]} Kf5 {[%emt 0:00:41]} 63. Nh4+ {[%emt 0:01:45]} Nxh4+ {[%emt 0:00:41]} 64. Rxh4 {[%emt 0:00:35]} Kg6 {[%emt 0:00:00]} 65. g4 {[%emt 0:00:00]} 1-0

[Event "Eurasia Open Cup 2019"]
[Site "Ekaterinburg"]
[Date "2019.08.06"]
[Round "6.16"]
[White "Drygalov, Andrey"]
[Black "Bublei, Pavel"]
[Result "1-0"]
[ECO "B12"]
[WhiteElo "2494"]
[BlackElo "2353"]
[Annotator "ChessBase"]
[PlyCount "47"]
[EventDate "2019.07.31"]
[EventType "swiss"]
[EventCountry "RUS"]
[SourceTitle "playchess.com"]
[Source "ChessBase"]
[SourceQuality "1"]
[TimeControl "5400+30"]

1. e4 {[%emt 0:00:00]} c6 {[%emt 0:00:00]} 2. d4 {[%emt 0:00:00]} d5 {[%emt 0:00:00]} 3. e5 {[%emt 0:00:00]} Bf5 {[%emt 0:00:00]} 4. Nf3 {[%emt 0:00:00]} e6 {[%emt 0:00:26]} 5. Be2 {[%emt 0:00:00]} Nd7 {[%emt 0:00:11]} 6. O-O {[%emt 0:00:00]} Ne7 {[%emt 0:00:16]} 7. Nbd2 {[%emt 0:00:00]} h6 {[%emt 0:00:00]} 8. Nb3 {[%emt 0:00:00]} g5 {[%emt 0:00:17]} 9. Ne1 {[%emt 0:00:07]} Qc7 {[%emt 0:00:20]} 10. Bh5 {[%emt 0:00:43]} Bg7 {[%emt 0:06:55]} 11. f4 {[%emt 0:02:44]} gxf4 {[%emt 0:06:16]} 12. Bxf4 {[%emt 0:04:46]} Bg6 {[%emt 0:03:53]} 13. Nd3 {[%emt 0:03:30]} b6 {[%emt 0:01:01]} 14. Bg3 {[%emt 0:12:03]} Nf5 {[%emt 0:02:52]} 15. Bf2 {[%emt 0:00:41]} Nf8 {[%emt 0:04:05]} 16. Nf4 {[%emt 0:02:21]} O-O-O {[%emt 0:03:19]} 17. Qg4 {[%emt 0:11:36]} Rg8 {[%emt 0:04:37]} 18. Rac1 {[%emt 0:06:52]} Kb8 {[%emt 0:06:36]} 19. c4 {[%emt 0:02:02]} Qd7 {[%emt 0:00:05]} 20. cxd5 {[%emt 0:01:50]} cxd5 {[%emt 0:00:58]} 21. Rc3 {[%emt 0:03:14]} Bxh5 {[%emt 0:04:52]} 22. Nxh5 {[%emt 0:03:42]} Ng6 {[%emt 0:01:53]} 23. Qf3 {[%emt 0:02:17]} Nh8 {[%emt 0:08:30]} 24. Rfc1 {[%emt 0:01:55]} 1-0

[Event "Eurasia Open Cup 2019"]
[Site "Ekaterinburg"]
[Date "2019.08.06"]
[Round "6.17"]
[White "Ovchinnikov, Vsevolod"]
[Black "Kezin, Roman"]
[Result "1/2-1/2"]
[ECO "E05"]
[WhiteElo "2346"]
[BlackElo "2470"]
[Annotator "ChessBase"]
[PlyCount "107"]
[EventDate "2019.07.31"]
[EventType "swiss"]
[EventCountry "RUS"]
[SourceTitle "playchess.com"]
[Source "ChessBase"]
[SourceQuality "1"]
[TimeControl "5400+30"]

1. d4 {[%emt 0:00:00]} d5 {[%emt 0:00:00]} 2. c4 {[%emt 0:00:00]} e6 {[%emt 0:00:00]} 3. Nf3 {[%emt 0:00:00]} Nf6 {[%emt 0:00:00]} 4. g3 {[%emt 0:00:00]} Be7 {[%emt 0:00:00]} 5. Bg2 {[%emt 0:00:00]} O-O {[%emt 0:00:00]} 6. O-O {[%emt 0:00:01]} dxc4 {[%emt 0:00:00]} 7. Qa4 {[%emt 0:00:00]} a6 {[%emt 0:04:53]} 8. Qxc4 {[%emt 0:00:17]} b5 {[%emt 0:00:04]} 9. Qc2 {[%emt 0:00:08]} Bb7 {[%emt 0:00:00]} 10. Bd2 {[%emt 0:00:06]} Ra7 {[%emt 0:02:23]} 11. Rc1 {[%emt 0:00:49]} Be4 {[%emt 0:00:06]} 12. Qb3 {[%emt 0:00:08]} Nc6 {[%emt 0:00:28]} 13. e3 {[%emt 0:02:04]} Qa8 {[%emt 0:00:05]} 14. Qd1 {[%emt 0:01:26]} b4 {[%emt 0:00:41]} 15. Qf1 {[%emt 0:01:41]} a5 {[%emt 0:13:17]} 16. Be1 {[%emt 0:02:54]} a4 {[%emt 0:20:40]} 17. Nfd2 {[%emt 0:28:29]} Bxg2 {[%emt 0:17:55]} 18. Qxg2 {[%emt 0:00:06]} Nd5 {[%emt 0:00:03]} 19. Nf3 {[%emt 0:17:11]} a3 {[%emt 0:19:23]} 20. bxa3 {[%emt 0:04:41]} bxa3 {[%emt 0:00:12]} 21. Nc3 {[%emt 0:00:30]} Rb8 {[%emt 0:10:45]} 22. Nxd5 {[%emt 0:02:24]} exd5 {[%emt 0:00:01]} 23. Qh3 {[%emt 0:00:11]} Bd6 {[%emt 0:05:21]} 24. Qf5 {[%emt 0:22:38]} Ne7 {[%emt 0:00:08]} 25. Qd3 {[%emt 0:00:03]} h6 {[%emt 0:03:57]} 26. Bc3 {[%emt 0:01:44]} Nc8 {[%emt 0:01:31]} 27. Nd2 {[%emt 0:01:26]} Nb6 {[%emt 0:00:31]} 28. Rab1 {[%emt 0:02:11]} Na4 {[%emt 0:00:33]} 29. Rxb8+ {[%emt 0:02:09]} Qxb8 {[%emt 0:00:02]} 30. Nb3 {[%emt 0:00:02]} Nb2 {[%emt 0:00:59]} 31. Qe2 {[%emt 0:00:53]} Na4 {[%emt 0:00:29]} 32. Ba1 {[%emt 0:02:16]} Qe8 {[%emt 0:00:23]} 33. Qc2 {[%emt 0:00:44]} Nb6 {[%emt 0:00:34]} 34. Rb1 {[%emt 0:02:09]} Qa4 {[%emt 0:00:59]} 35. Bc3 {[%emt 0:01:06]} Ra8 {[%emt 0:00:00]} 36. Na1 {[%emt 0:02:16]} Qc4 {[%emt 0:00:23]} 37. Bb4 {[%emt 0:02:17]} Bxb4 {[%emt 0:01:13]} 38. Qxc4 {[%emt 0:00:36]} Nxc4 {[%emt 0:00:00]} 39. Rxb4 {[%emt 0:00:00]} Ra6 {[%emt 0:00:13]} 40. Nc2 {[%emt 0:01:33]} Rc6 {[%emt 0:00:46]} 41. Rb5 {[%emt 0:01:14]} Rd6 {[%emt 0:00:30]} 42. Nb4 {[%emt 0:01:20]} Kh7 {[%emt 0:00:31]} 43. Kf1 {[%emt 0:00:42]} Nd2+ {[%emt 0:00:10]} 44. Ke1 {[%emt 0:00:31]} Ne4 {[%emt 0:00:05]} 45. f3 {[%emt 0:00:25]} Nc3 {[%emt 0:01:13]} 46. Rc5 {[%emt 0:00:02]} Rb6 {[%emt 0:00:30]} 47. Rxc3 {[%emt 0:00:40]} Rxb4 {[%emt 0:00:00]} 48. Rxa3 {[%emt 0:00:01]} Rb1+ {[%emt 0:01:18]} 49. Ke2 {[%emt 0:01:46]} Rb2+ {[%emt 0:00:00]} 50. Kd3 {[%emt 0:00:01]} Rxh2 {[%emt 0:00:03]} 51. Ra7 {[%emt 0:00:00]} Rf2 {[%emt 0:01:24]} 52. f4 {[%emt 0:00:17]} Kg6 {[%emt 0:00:04]} 53. Rxc7 {[%emt 0:01:29]} Rxa2 {[%emt 0:00:00]} 54. Rd7 {[%emt 0:00:05]} 1/2-1/2

[Event "Eurasia Open Cup 2019"]
[Site "Ekaterinburg"]
[Date "2019.08.06"]
[Round "6.18"]
[White "Ulybin, Mikhail"]
[Black "Lysenko, Margarita"]
[Result "1-0"]
[ECO "B51"]
[WhiteElo "2469"]
[BlackElo "2224"]
[Annotator "ChessBase"]
[PlyCount "117"]
[EventDate "2019.07.31"]
[EventType "swiss"]
[EventCountry "RUS"]
[SourceTitle "playchess.com"]
[Source "ChessBase"]
[SourceQuality "1"]
[TimeControl "5400+30"]

1. e4 {[%emt 0:05:44]} c5 {[%emt 0:00:00]} 2. Nf3 {[%emt 0:00:37]} d6 {[%emt 0:00:00]} 3. Bb5+ {[%emt 0:02:23]} Nd7 {[%emt 0:00:05]} 4. O-O {[%emt 0:03:06]} a6 {[%emt 0:02:03]} 5. Bd3 {[%emt 0:01:13]} Ngf6 {[%emt 0:00:10]} 6. c3 {[%emt 0:01:01]} e6 {[%emt 0:00:35]} 7. Bc2 {[%emt 0:01:02]} b5 {[%emt 0:04:47]} 8. d4 {[%emt 0:01:25]} Bb7 {[%emt 0:01:03]} 9. Re1 {[%emt 0:10:30]} cxd4 {[%emt 0:05:29]} 10. cxd4 {[%emt 0:01:02]} Be7 {[%emt 0:04:38]} 11. Nbd2 {[%emt 0:05:39]} e5 {[%emt 0:15:17]} 12. Nf1 {[%emt 0:10:12]} O-O {[%emt 0:00:00]} 13. Ng3 {[%emt 0:03:23]} g6 {[%emt 0:01:29]} 14. Bb3 {[%emt 0:19:13]} exd4 {[%emt 0:27:35]} 15. Bh6 {[%emt 0:08:14]} Re8 {[%emt 0:01:19]} 16. Ng5 {[%emt 0:02:07]} d5 {[%emt 0:00:46]} 17. exd5 {[%emt 0:11:57]} Bxd5 {[%emt 0:13:37]} 18. Bxd5 {[%emt 0:01:49]} Nxd5 {[%emt 0:00:32]} 19. Qxd4 {[%emt 0:00:29]} N7f6 {[%emt 0:02:27]} 20. N3e4 {[%emt 0:04:12]} Nc7 {[%emt 0:04:37]} 21. Qe5 {[%emt 0:02:05]} Nh5 {[%emt 0:03:50]} 22. Rad1 {[%emt 0:01:12]} Qb8 {[%emt 0:07:23]} 23. Rd7 {[%emt 0:01:38]} Bf8 {[%emt 0:01:04]} 24. Qxc7 {[%emt 0:00:31]} Qxc7 {[%emt 0:00:17]} 25. Rxc7 {[%emt 0:00:06]} Bxh6 {[%emt 0:00:34]} 26. Nxf7 {[%emt 0:01:25]} Bg7 {[%emt 0:00:22]} 27. Kf1 {[%emt 0:00:01]} Nf6 {[%emt 0:02:25]} 28. Nh6+ {[%emt 0:00:24]} Kh8 {[%emt 0:00:40]} 29. Nf7+ {[%emt 0:00:26]} Kg8 {[%emt 0:00:07]} 30. Nh6+ {[%emt 0:00:44]} Kh8 {[%emt 0:00:00]} 31. Nxf6 {[%emt 0:00:18]} Rxe1+ {[%emt 0:01:23]} 32. Kxe1 {[%emt 0:00:05]} Bxf6 {[%emt 0:00:00]} 33. b3 {[%emt 0:00:49]} a5 {[%emt 0:00:53]} 34. Ng4 {[%emt 0:01:17]} Ba1 {[%emt 0:00:29]} 35. Kd2 {[%emt 0:00:03]} b4 {[%emt 0:00:50]} 36. f4 {[%emt 0:00:34]} Bc3+ {[%emt 0:00:11]} 37. Ke3 {[%emt 0:00:25]} Re8+ {[%emt 0:00:57]} 38. Kf3 {[%emt 0:00:21]} Rd8 {[%emt 0:00:33]} 39. Ra7 {[%emt 0:00:22]} Rd3+ {[%emt 0:00:00]} 40. Ke4 {[%emt 0:00:14]} Rd2 {[%emt 0:00:34]} 41. Rxa5 {[%emt 0:01:25]} Rxg2 {[%emt 0:00:00]} 42. Ra8+ {[%emt 0:00:00]} Kg7 {[%emt 0:00:25]} 43. Ra7+ {[%emt 0:00:05]} Kh8 {[%emt 0:00:58]} 44. Kf3 {[%emt 0:01:00]} Rd2 {[%emt 0:00:34]} 45. Ra8+ {[%emt 0:00:24]} Kg7 {[%emt 0:00:00]} 46. h4 {[%emt 0:00:40]} Rd3+ {[%emt 0:00:49]} 47. Ke4 {[%emt 0:00:32]} Rh3 {[%emt 0:00:17]} 48. Ra7+ {[%emt 0:00:24]} Kh8 {[%emt 0:00:40]} 49. Ra8+ {[%emt 0:00:31]} Kg7 {[%emt 0:00:08]} 50. Ra7+ {[%emt 0:00:22]} Kh8 {[%emt 0:00:10]} 51. Ne3 {[%emt 0:01:00]} Rxh4 {[%emt 0:00:39]} 52. Nd5 {[%emt 0:00:06]} g5 {[%emt 0:01:16]} 53. a4 {[%emt 0:00:00]} gxf4 {[%emt 0:00:52]} 54. a5 {[%emt 0:00:50]} Ba1 {[%emt 0:00:04]} 55. a6 {[%emt 0:00:29]} f3+ {[%emt 0:01:04]} 56. Kxf3 {[%emt 0:00:47]} Rh3+ {[%emt 0:00:14]} 57. Ke4 {[%emt 0:00:43]} Rxb3 {[%emt 0:00:29]} 58. Rb7 {[%emt 0:00:34]} Ra3 {[%emt 0:00:16]} 59. a7 {[%emt 0:00:22]} 1-0

[Event "Eurasia Open Cup 2019"]
[Site "Ekaterinburg"]
[Date "2019.08.06"]
[Round "6.19"]
[White "Pogromsky, Mikhail"]
[Black "Ufimtsev, Egor"]
[Result "1-0"]
[ECO "D37"]
[WhiteElo "2414"]
[BlackElo "2148"]
[Annotator "NA"]
[PlyCount "63"]
[EventDate "2019.07.31"]
[EventType "swiss"]
[EventCountry "RUS"]
[SourceTitle "playchess.com"]
[Source "ChessBase"]
[SourceQuality "1"]
[TimeControl "5400+30"]

1. d4 {[%emt 0:00:10]} d5 {[%emt 0:00:00]} 2. Nf3 {[%emt 0:00:50]} Nf6 {[%emt 0:00:58]} 3. Bf4 {[%emt 0:02:06]} e6 {[%emt 0:01:09]} 4. e3 {[%emt 0:00:56]} Be7 {[%emt 0:00:33]} 5. c4 {[%emt 0:03:56]} O-O {[%emt 0:00:29]} 6. Nc3 {[%emt 0:00:00]} c6 {[%emt 0:02:05]} 7. h3 {[%emt 0:01:19]} Nbd7 {[%emt 0:01:31]} 8. Bd3 {[%emt 0:04:52]} b6 {[%emt 0:07:31]} 9. cxd5 {[%emt 0:01:10]} exd5 {[%emt 0:01:45]} 10. O-O {[%emt 0:02:42]} Bb7 {[%emt 0:00:22]} 11. a3 {[%emt 0:03:10]} c5 {[%emt 0:15:19]} 12. Ne5 {[%emt 0:06:08]} Rc8 {[%emt 0:14:34]} 13. Qf3 {[%emt 0:05:13]} g6 {[%emt 0:14:58]} 14. Rad1 {[%emt 0:05:21]} Nxe5 {[%emt 0:10:47]} 15. dxe5 {[%emt 0:03:49]} Nh5 {[%emt 0:07:20]} 16. Bh6 {[%emt 0:09:36]} Ng7 {[%emt 0:00:04]} 17. Bb1 {[%emt 0:00:41]} Qc7 {[%emt 0:05:41]} 18. Nxd5 {[%emt 0:07:47]} Qxe5 {[%emt 0:00:33]} 19. Qg3 {[%emt 0:04:26]} Qe6 {[%emt 0:01:43]} 20. Bxg7 {[%emt 0:01:11]} Kxg7 {[%emt 0:00:15]} 21. Bf5 {[%emt 0:00:00]} Qxf5 {[%emt 0:04:05]} 22. Nxe7 {[%emt 0:00:03]} Qf6 {[%emt 0:01:09]} 23. Nxc8 {[%emt 0:00:10]} Rxc8 {[%emt 0:00:03]} 24. Rd2 {[%emt 0:00:33]} c4 {[%emt 0:01:09]} 25. Qd6 {[%emt 0:01:14]} Qg5 {[%emt 0:01:29]} 26. f4 {[%emt 0:01:14]} Qg3 {[%emt 0:00:38]} 27. Qe5+ {[%emt 0:02:00]} Kg8 {[%emt 0:00:14]} 28. Qe7 {[%emt 0:02:03]} Bc6 {[%emt 0:02:25]} 29. Rff2 {[%emt 0:05:54]} b5 {[%emt 0:03:33]} 30. Rd8+ {[%emt 0:03:22]} Rxd8 {[%emt 0:00:00]} 31. Qxd8+ {[%emt 0:00:07]} Kg7 {[%emt 0:00:00]} 32. Qd4+ {[%emt 0:00:20]} 1-0

[Event "Eurasia Open Cup 2019"]
[Site "Ekaterinburg"]
[Date "2019.08.06"]
[Round "6.20"]
[White "Gabdrakhmanov, Azat"]
[Black "Kopylov, Alexander A."]
[Result "1/2-1/2"]
[ECO "C79"]
[WhiteElo "2111"]
[BlackElo "2410"]
[Annotator "NA"]
[PlyCount "148"]
[EventDate "2019.07.31"]
[EventType "swiss"]
[EventCountry "RUS"]
[SourceTitle "playchess.com"]
[Source "ChessBase"]
[SourceQuality "1"]
[TimeControl "5400+30"]

1. e4 {[%emt 0:00:00]} e5 {[%emt 0:00:38]} 2. Nf3 {[%emt 0:00:00]} Nc6 {[%emt 0:00:07]} 3. Bb5 {[%emt 0:00:00]} a6 {[%emt 0:00:10]} 4. Ba4 {[%emt 0:00:00]} d6 {[%emt 0:00:27]} 5. O-O {[%emt 0:00:01]} Bd7 {[%emt 0:00:18]} 6. c3 {[%emt 0:00:19]} Nf6 {[%emt 0:00:12]} 7. Re1 {[%emt 0:00:07]} g6 {[%emt 0:00:14]} 8. d4 {[%emt 0:00:15]} Bg7 {[%emt 0:00:11]} 9. Nbd2 {[%emt 0:03:31]} O-O {[%emt 0:03:31]} 10. Nf1 {[%emt 0:01:44]} Qe8 {[%emt 0:03:07]} 11. Bc2 {[%emt 0:01:34]} Nh5 {[%emt 0:00:37]} 12. Ne3 {[%emt 0:03:08]} Rc8 {[%emt 0:04:18]} 13. h3 {[%emt 0:01:12]} Kh8 {[%emt 0:05:19]} 14. Nd5 {[%emt 0:03:19]} f5 {[%emt 0:00:29]} 15. exf5 {[%emt 0:02:44]} gxf5 {[%emt 0:00:32]} 16. Nf4 {[%emt 0:11:13]} e4 {[%emt 0:08:36]} 17. d5 {[%emt 0:06:23]} Ne7 {[%emt 0:01:21]} 18. Nh2 {[%emt 0:05:57]} Nxf4 {[%emt 0:00:49]} 19. Bxf4 {[%emt 0:00:02]} Qf7 {[%emt 0:02:18]} 20. Bb3 {[%emt 0:01:49]} Ng6 {[%emt 0:00:23]} 21. Be3 {[%emt 0:04:43]} Rce8 {[%emt 0:07:36]} 22. f4 {[%emt 0:06:09]} Qe7 {[%emt 0:02:31]} 23. Qd2 {[%emt 0:01:58]} c5 {[%emt 0:00:28]} 24. dxc6 {[%emt 0:01:05]} bxc6 {[%emt 0:00:27]} 25. Rad1 {[%emt 0:00:08]} d5 {[%emt 0:00:21]} 26. Qf2 {[%emt 0:00:20]} Be6 {[%emt 0:01:15]} 27. g3 {[%emt 0:02:34]} Rg8 {[%emt 0:01:15]} 28. Bc5 {[%emt 0:01:09]} Qf7 {[%emt 0:00:23]} 29. Kh1 {[%emt 0:00:26]} Nf8 {[%emt 0:00:16]} 30. Nf1 {[%emt 0:00:47]} Nd7 {[%emt 0:02:20]} 31. Bd4 {[%emt 0:00:07]} Rc8 {[%emt 0:14:34]} 32. Ne3 {[%emt 0:03:28]} Bxd4 {[%emt 0:01:44]} 33. Rxd4 {[%emt 0:05:27]} c5 {[%emt 0:04:07]} 34. Rd2 {[%emt 0:01:01]} c4 {[%emt 0:04:16]} 35. Bc2 {[%emt 0:00:40]} Nc5 {[%emt 0:00:06]} 36. Kh2 {[%emt 0:01:49]} Nd3 {[%emt 0:03:41]} 37. Bxd3 {[%emt 0:00:32]} cxd3 {[%emt 0:00:05]} 38. Ng2 {[%emt 0:01:26]} Rc4 {[%emt 0:05:34]} 39. Qb6 {[%emt 0:02:13]} Qg6 {[%emt 0:00:32]} 40. Re3 {[%emt 0:00:38]} Bc8 {[%emt 0:02:20]} 41. Qa5 {[%emt 0:04:30]} Qc6 {[%emt 0:02:41]} 42. Qa3 {[%emt 0:02:45]} Ra4 {[%emt 0:02:50]} 43. Qe7 {[%emt 0:03:41]} Re8 {[%emt 0:00:00]} 44. Qh4 {[%emt 0:02:09]} Rxa2 {[%emt 0:02:03]} 45. g4 {[%emt 0:00:45]} Ra1 {[%emt 0:11:28]} 46. Rg3 {[%emt 0:04:15]} fxg4 {[%emt 0:00:15]} 47. hxg4 {[%emt 0:00:09]} Qd6 {[%emt 0:03:30]} 48. Qh5 {[%emt 0:02:33]} Re7 {[%emt 0:02:22]} 49. Rf2 {[%emt 0:02:55]} Bd7 {[%emt 0:00:20]} 50. Ne3 {[%emt 0:00:00]} d4 {[%emt 0:00:47]} 51. cxd4 {[%emt 0:00:53]} Qxd4 {[%emt 0:00:06]} 52. Qh4 {[%emt 0:00:59]} Rg7 {[%emt 0:01:36]} 53. Rh3 {[%emt 0:00:01]} Rb1 {[%emt 0:00:00]} 54. Qd8+ {[%emt 0:00:56]} Rg8 {[%emt 0:00:00]} 55. Qe7 {[%emt 0:00:01]} Qg7 {[%emt 0:00:14]} 56. Qxe4 {[%emt 0:00:15]} Rxb2 {[%emt 0:01:18]} 57. Rxh7+ {[%emt 0:01:43]} Qxh7+ {[%emt 0:00:15]} 58. Qxh7+ {[%emt 0:00:01]} Kxh7 {[%emt 0:00:36]} 59. Rxb2 {[%emt 0:00:01]} Bxg4 {[%emt 0:00:22]} 60. Nxg4 {[%emt 0:01:02]} Rxg4 {[%emt 0:00:35]} 61. Rd2 {[%emt 0:00:00]} Rxf4 {[%emt 0:00:00]} 62. Rxd3 {[%emt 0:00:21]} a5 {[%emt 0:00:54]} 63. Kg3 {[%emt 0:00:32]} Rf5 {[%emt 0:00:03]} 64. Kg4 {[%emt 0:00:30]} Kg6 {[%emt 0:00:52]} 65. Rd8 {[%emt 0:00:02]} Rf1 {[%emt 0:00:37]} 66. Ra8 {[%emt 0:01:32]} Ra1 {[%emt 0:00:37]} 67. Kf4 {[%emt 0:01:17]} Kf6 {[%emt 0:00:06]} 68. Ke4 {[%emt 0:00:04]} Ke6 {[%emt 0:00:04]} 69. Kd4 {[%emt 0:00:59]} Kd6 {[%emt 0:00:07]} 70. Kc4 {[%emt 0:00:36]} Kc6 {[%emt 0:00:06]} 71. Ra6+ {[%emt 0:00:12]} Kb7 {[%emt 0:00:00]} 72. Rh6 {[%emt 0:00:10]} Rb1 {[%emt 0:00:06]} 73. Rh7+ {[%emt 0:00:12]} Kb8 {[%emt 0:00:17]} 74. Rh8+ {[%emt 0:00:08]} Ka7 {[%emt 0:00:03]} 1/2-1/2